lending/lending_fUSD_20241005
["ID","MTS","AMOUNT","RATE_DAILY","PERIOD"]
[339900254,1728147103351,-845.63,0.0004,30]
[339900255,1728147103360,-500.0,0.0004,30]
[339900256,1728147103369,-500.0,0.0004,30]
[339900257,1728147103377,-1381.8,0.0004,30]
[339900258,1728147103386,-500.0,0.0004,30]
[339900259,1728147103396,-500.0,0.0004,30]
[339900260,1728147103405,-500.0,0.0004,30]
[339900261,1728147103414,-500.0,0.0004,30]
[339900262,1728147103424,-500.0,0.0004,30]
[339900263,1728147103434,-500.0,0.0004,30]
[339900264,1728147103444,-741.0,0.0004,30]
[339900265,1728147103453,-500.0,0.0004,30]
[339900266,1728147103463,-982.24,0.0004,30]
[339900267,1728147103472,-500.0,0.0004,30]
[339900268,1728147103481,-500.0,0.0004,30]
[339900269,1728147103491,-1105.62,0.0004,30]
[339900270,1728147103500,-500.0,0.0004,30]
[339900271,1728147103509,-500.0,0.0004,30]
[339900272,1728147103519,-500.0,0.0004,30]
[339900273,1728147103528,-500.0,0.0004,30]
[339900274,1728147103537,-877.47,0.0004,30]
[339900275,1728147103546,-500.0,0.0004,30]
[339900276,1728147103555,-500.0,0.0004,30]
[339900277,1728147103565,-500.0,0.0004,30]
[339900278,1728147103574,-151.0,0.0004,14]
[339900279,1728147103583,-994.36,0.0004,30]
[339900280,1728147103592,-500.0,0.0004,30]
[339900281,1728147103601,-1035.51,0.0004,30]
[339900282,1728147103610,-500.0,0.0004,30]
[339900283,1728147103620,-500.0,0.0004,30]
[339900284,1728147103629,-500.0,0.0004,30]
[339900285,1728147103638,-989.87,0.0004,30]
[339900286,1728147103648,-500.0,0.0004,30]
[339900287,1728147103657,-500.0,0.0004,30]
[339900288,1728147103666,-871.55,0.0004,30]
[339900289,1728147103676,-500.0,0.0004,30]
[339900290,1728147103685,-1333.03,0.0004,30]
[339900291,1728147103694,-925.19,0.0004,30]
[339900292,1728147103703,-500.0,0.0004,30]
[339900293,1728147103712,-500.0,0.0004,30]
[339900294,1728147103722,-500.0,0.0004,30]
[339900295,1728147103731,-1502.02,0.0004,30]
[339900296,1728147103741,-889.77,0.0004,30]
[339900297,1728147103750,-600.24,0.0004,30]
[339900298,1728147103760,-717.54,0.0004,30]
[339900299,1728147103770,-963.18,0.0004,30]
[339900300,1728147103779,-500.0,0.0004,5]
[339900301,1728147103788,-551.7,0.0004,30]
[339900302,1728147103797,-1246.88,0.0004,30]
[339900303,1728147103806,-584.17,0.0004,30]
[339900304,1728147103815,-518.72,0.0004,30]
[339900305,1728147103825,-500.0,0.0004,30]
[339900306,1728147103834,-500.0,0.0004,30]
[339900307,1728147103843,-500.0,0.0004,30]
[339900308,1728147103853,-500.0,0.0004,30]
[339900309,1728147103862,-500.0,0.0004,30]
[339900310,1728147103872,-1465.78,0.0004,30]
[339900311,1728147103881,-282.11609791,0.0004,30]
[339900312,1728147103890,-1472.61,0.0004,30]
[339900313,1728147103900,-500.0,0.0004,30]
[339900314,1728147103910,-848.55,0.0004,30]
[339900315,1728147103919,-500.0,0.0004,30]
[339900316,1728147103928,-500.0,0.0004,30]
[339900317,1728147103937,-500.0,0.0004,30]
[339900318,1728147103946,-779.41,0.0004,30]
[339900319,1728147103955,-500.0,0.0004,30]
[339900320,1728147103965,-500.0,0.0004,30]
[339900321,1728147103974,-500.0,0.0004,30]
[339900322,1728147103985,-500.0,0.0004,30]
[339900323,1728147103993,-777.28,0.0004,30]
[339900324,1728147104002,-500.0,0.0004,30]
[339900325,1728147104011,-1683.21,0.0004,30]
[339900326,1728147104020,-500.0,0.0004,30]
[339900327,1728147104029,-500.0,0.0004,30]
[339900328,1728147104038,-500.0,0.0004,30]
[339900329,1728147104048,-1078.6,0.0004,30]
[339900330,1728147104057,-1725.49,0.0004,30]
[339900331,1728147104066,-500.0,0.0004,30]
[339900332,1728147104075,-587.6,0.0004,30]
[339900333,1728147104084,-659.83,0.0004,30]
[339900334,1728147104093,-600.74,0.0004,30]
[339900335,1728147104102,-500.0,0.0004,30]
[339900336,1728147104111,-500.0,0.0004,30]
[339900337,1728147104120,-500.0,0.0004,30]
[339900338,1728147104129,-706.43,0.0004,30]
[339900339,1728147104139,-500.0,0.0004,30]
[339900340,1728147104148,-1054.81,0.0004,30]
[339900341,1728147104157,-500.0,0.0004,30]
[339900342,1728147104166,-500.0,0.0004,30]
[339900343,1728147104175,-500.0,0.0004,30]
[339900344,1728147104184,-1280.81,0.0004,30]
[339900345,1728147104193,-500.0,0.0004,30]
[339900346,1728147104203,-500.0,0.0004,30]
[339900347,1728147104211,-500.0,0.0004,30]
[339900348,1728147104221,-1363.15,0.0004,30]
[339900349,1728147104232,-500.0,0.0004,30]
[339900350,1728147104242,-500.0,0.0004,30]
[339900351,1728147104251,-500.0,0.0004,30]
[339900352,1728147104260,-500.0,0.0004,30]
[339900353,1728147104270,-905.57,0.0004,30]
[339900354,1728147104279,-500.0,0.0004,30]
[339900355,1728147104291,-1235.27,0.0004,30]
[339900356,1728147104300,-1284.12,0.0004,30]
[339900357,1728147104309,-500.0,0.0004,30]
[339900358,1728147104318,-500.0,0.0004,30]
[339900359,1728147104327,-500.0,0.0004,30]
[339900360,1728147104338,-500.0,0.0004,30]
[339900361,1728147104348,-637.05,0.0004,30]
[339900362,1728147104357,-500.0,0.0004,30]
[339900363,1728147104365,-500.0,0.0004,30]
[339900364,1728147104375,-1285.68,0.0004,30]
[339900365,1728147104383,-503.25,0.0004,30]
[339900366,1728147104393,-500.0,0.0004,30]
[339900367,1728147104402,-500.0,0.0004,30]
[339900368,1728147104412,-500.0,0.0004,30]
[339900369,1728147104424,-500.0,0.0004,30]
[339900370,1728147104437,-500.0,0.0004,30]
[339900371,1728147104446,-938.91,0.0004,30]
[339900372,1728147104457,-500.0,0.0004,30]
[339900373,1728147104467,-500.0,0.0004,30]
[339900374,1728147104477,-500.0,0.0004,30]
[339900375,1728147104488,-1214.24,0.0004,30]
[339900376,1728147104497,-669.13,0.0004,30]
[339900377,1728147104506,-950.76,0.0004,30]
[339900378,1728147104516,-500.0,0.0004,30]
[339900379,1728147104526,-1555.77,0.0004,30]
[339900380,1728147104535,-1046.87,0.0004,30]
[339900381,1728147104544,-597.49911906,0.0004,30]
[339900382,1728147104553,-500.0,0.0004,30]
[339900383,1728147104562,-1000.0,0.0004,30]
[339900384,1728147104571,-766.5,0.0004,30]
[339900385,1728147104580,-1076.33,0.0004,30]
[339900386,1728147104589,-500.0,0.0004,30]
[339900387,1728147104599,-500.0,0.0004,30]
[339900388,1728147104609,-500.0,0.0004,30]
[339900389,1728147104619,-500.0,0.0004,30]
[339900390,1728147104630,-773.6,0.0004,30]
[339900391,1728147104640,-500.0,0.0004,30]
[339900392,1728147104650,-956.46,0.0004,30]
[339900393,1728147104659,-500.0,0.0004,30]
[339900394,1728147104670,-500.0,0.0004,30]
[339900395,1728147104679,-500.0,0.0004,30]
[339900396,1728147104688,-601.62563379,0.0004,2]
[339900397,1728147104698,-500.0,0.0004,30]
[339900398,1728147104708,-500.0,0.0004,30]
[339900399,1728147104717,-500.0,0.0004,30]
[339900400,1728147104726,-500.0,0.0004,30]
[339900401,1728147104736,-500.0,0.0004,30]
[339900402,1728147104745,-1442.35,0.0004,30]
[339900403,1728147104756,-1211.84,0.0004,30]
[339900404,1728147104766,-500.0,0.0004,30]
[339900405,1728147104776,-658.69,0.0004,30]
[339900406,1728147104786,-1361.72,0.0004,24]
[339900407,1728147104795,-500.0,0.0004,30]
[339900408,1728147104805,-1120.5,0.0004,30]
[339900409,1728147104814,-500.0,0.0004,30]
[339900410,1728147104824,-500.0,0.0004,30]
[339900411,1728147104833,-500.0,0.0004,30]
[339900412,1728147104843,-500.0,0.0004,30]
[339900413,1728147104852,-1128.3,0.0004,30]
[339900414,1728147104861,-500.0,0.0004,30]
[339900415,1728147104871,-500.0,0.0004,30]
[339900416,1728147104880,-500.0,0.0004,30]
[339900417,1728147104890,-500.0,0.0004,30]
[339900418,1728147104900,-627.25,0.0004,30]
[339900419,1728147104910,-500.0,0.0004,30]
[339900420,1728147104919,-723.77,0.0004,30]
[339900421,1728147104929,-500.0,0.0004,30]
[339900422,1728147104938,-1143.9,0.0004,30]
[339900423,1728147104947,-502.75,0.0004,30]
[339900424,1728147104957,-500.0,0.0004,30]
[339900425,1728147104966,-1054.07,0.0004,30]
[339900426,1728147104975,-506.00253354,0.0004,30]
[339900427,1728147104986,-500.0,0.0004,30]
[339900428,1728147105002,-1458.38,0.0004,30]
[339900429,1728147105012,-680.05,0.0004,30]
[339900430,1728147105022,-500.0,0.0004,30]
[339900431,1728147105031,-2308.66,0.0004,30]
[339900432,1728147105039,-151.0,0.0004,14]
[339900433,1728147105048,-526.17,0.0004,30]
[339900434,1728147105057,-500.0,0.0004,30]
[339900435,1728147105067,-958.76,0.0004,30]
[339900436,1728147105077,-500.0,0.0004,30]
[339900437,1728147105087,-500.0,0.0004,30]
[339900438,1728147105096,-521.35,0.0004,30]
[339900439,1728147105105,-772.75,0.0004,30]
[339900440,1728147105114,-668.383726,0.0004,14]
[339900441,1728147105124,-957.22,0.0004,30]
[339900442,1728147105134,-500.0,0.0004,30]
[339900443,1728147105143,-500.0,0.0004,30]
[339900444,1728147105154,-668.383726,0.0004,14]
[339900445,1728147105163,-1182.56,0.0004,30]
[339900446,1728147105173,-500.0,0.0004,30]
[339900447,1728147105182,-658.49,0.0004,30]
[339900448,1728147105192,-500.0,0.0004,30]
[339900449,1728147105201,-500.0,0.0004,30]
[339900450,1728147105210,-500.0,0.0004,30]
[339900451,1728147105220,-500.0,0.0004,30]
[339900452,1728147105230,-764.47,0.0004,30]
[339900453,1728147105240,-500.0,0.0004,30]
[339900454,1728147105250,-500.0,0.0004,30]
[339900455,1728147105260,-500.0,0.0004,30]
[339900456,1728147105269,-500.0,0.0004,30]
[339900457,1728147105279,-1230.05,0.0004,30]
[339900458,1728147105291,-500.0,0.0004,30]
[339900459,1728147105301,-500.0,0.0004,30]
[339900460,1728147105311,-500.0,0.0004,30]
[339900461,1728147105321,-872.43,0.0004,30]
[339900462,1728147105330,-500.0,0.0004,30]
[339900463,1728147105345,-500.0,0.0004,30]
[339900464,1728147105354,-500.0,0.0004,30]
[339900465,1728147105363,-611.65,0.0004,30]
[339900466,1728147105373,-500.0,0.0004,30]
[339900467,1728147105382,-500.0,0.0004,30]
[339900468,1728147105391,-842.7,0.0004,30]
[339900469,1728147105401,-500.0,0.0004,30]
[339900470,1728147105410,-500.0,0.0004,30]
[339900471,1728147105419,-821.45,0.0004,30]
[339900472,1728147105428,-1020.54,0.0004,30]
[339900473,1728147105437,-500.0,0.0004,30]
[339900474,1728147105447,-500.0,0.0004,30]
[339900475,1728147105457,-500.0,0.0004,30]
[339900476,1728147105466,-508.95,0.0004,30]
[339900477,1728147105476,-500.0,0.0004,30]
[339900478,1728147105486,-500.0,0.0004,30]
[339900479,1728147105495,-500.0,0.0004,30]
[339900480,1728147105505,-500.0,0.0004,30]
[339900481,1728147105514,-500.0,0.0004,30]
[339900482,1728147105523,-1095.31,0.0004,30]
[339900483,1728147105532,-1129.38,0.0004,30]
[339900484,1728147105542,-500.0,0.0004,30]
[339900485,1728147105728,-500.0,0.0004,30]
[339900486,1728147105745,-500.0,0.0004,30]
[339900487,1728147105755,-500.0,0.0004,30]
[339900488,1728147105765,-500.0,0.0004,30]
[339900489,1728147105774,-500.0,0.0004,30]
[339900490,1728147105782,-505.45541632,0.0004,30]
[339900491,1728147105792,-794.7,0.0004,30]
[339900492,1728147105801,-500.0,0.0004,30]
[339900493,1728147105811,-237.45204992,0.0004,30]
[339900494,1728147105820,-500.0,0.0004,30]
[339900495,1728147105831,-830.85,0.0004,30]
[339900496,1728147105840,-500.0,0.0004,30]
[339900497,1728147105850,-1027.89,0.0004,30]
[339900498,1728147105859,-500.0,0.0004,30]
[339900499,1728147105869,-500.0,0.0004,30]
[339900500,1728147105878,-1487.21,0.0004,30]
[339900501,1728147105888,-500.0,0.0004,30]
[339900502,1728147105898,-1056.64,0.0004,30]
[339900503,1728147105907,-500.0,0.0004,30]
[339900504,1728147105916,-500.0,0.0004,30]
[339900505,1728147105926,-500.0,0.0004,30]
[339900506,1728147105935,-500.0,0.0004,30]
[339900507,1728147105945,-966.23,0.0004,30]
[339900508,1728147105954,-500.0,0.0004,30]
[339900509,1728147105963,-500.0,0.0004,30]
[339900510,1728147105972,-1402.9,0.0004,30]
[339900511,1728147105982,-500.0,0.0004,30]
[339900512,1728147105991,-155.637596,0.0004,30]
[339900513,1728147106000,-500.0,0.0004,30]
[339900514,1728147106010,-500.0,0.0004,30]
[339900515,1728147106019,-500.0,0.0004,30]
[339900516,1728147106029,-500.0,0.0004,30]
[339900517,1728147106039,-500.0,0.0004,30]
[339900518,1728147106049,-500.0,0.0004,30]
[339900519,1728147106058,-500.0,0.0004,30]
[339900520,1728147106068,-500.0,0.0004,30]
[339900521,1728147106078,-605.78,0.0004,30]
[339900522,1728147106087,-534.83,0.0004,30]
[339900523,1728147106098,-540.58,0.0004,30]
[339900524,1728147106109,-1181.15,0.0004,30]
[339900525,1728147106120,-500.0,0.0004,30]
[339900526,1728147106131,-567.65,0.0004,30]
[339900527,1728147106141,-602.72,0.0004,30]
[339900528,1728147106152,-942.98,0.0004,30]
[339900529,1728147106162,-500.0,0.0004,30]
[339900530,1728147106171,-159.53060496,0.0004,30]
[339900531,1728147106180,-500.0,0.0004,30]
[339900532,1728147106190,-739.94,0.0004,30]
[339900533,1728147106199,-500.0,0.0004,30]
[339900534,1728147106208,-1122.04,0.0004,30]
[339900535,1728147106218,-500.0,0.0004,30]
[339900536,1728147106227,-500.0,0.0004,30]
[339900537,1728147106237,-960.92,0.0004,30]
[339900538,1728147106246,-1176.15,0.0004,30]
[339900539,1728147106255,-500.0,0.0004,30]
[339900540,1728147106265,-500.0,0.0004,30]
[339900541,1728147106274,-500.0,0.0004,30]
[339900542,1728147106284,-1087.37,0.0004,30]
[339900543,1728147106294,-500.0,0.0004,30]
[339900544,1728147106303,-548.14,0.0004,30]
[339900545,1728147106313,-500.0,0.0004,30]
[339900546,1728147106322,-255.38607,0.0004,30]
[339900547,1728147106331,-500.0,0.0004,30]
[339900548,1728147106344,-894.57,0.0004,30]
[339900549,1728147106353,-808.84,0.0004,30]
[339900550,1728147106362,-500.0,0.0004,30]
[339900551,1728147106371,-500.0,0.0004,30]
[339900552,1728147106381,-519.674202,0.0004,30]
[339900553,1728147106390,-500.0,0.0004,30]
[339900554,1728147106399,-500.0,0.0004,30]
[339900555,1728147106409,-744.22,0.0004,30]
[339900556,1728147106418,-500.0,0.0004,30]
[339900557,1728147106428,-795.88,0.0004,30]
[339900558,1728147106437,-1106.31,0.0004,30]
[339900559,1728147106447,-500.0,0.0004,30]
[339900560,1728147106457,-500.0,0.0004,30]
[339900561,1728147106466,-719.91,0.0004,30]
[339900562,1728147106476,-500.0,0.0004,30]
[339900563,1728147106486,-912.73,0.0004,30]
[339900564,1728147106496,-789.28,0.0004,30]
[339900565,1728147106506,-519.73,0.0004,30]
[339900566,1728147106515,-500.0,0.0004,30]
[339900567,1728147106525,-1177.68,0.0004,30]
[339900568,1728147106534,-500.0,0.0004,30]
[339900569,1728147106544,-780.08,0.0004,14]
[339900570,1728147106554,-504.90563629,0.0004,30]
[339900571,1728147106563,-750.93,0.0004,30]
[339900572,1728147106572,-500.0,0.0004,30]
[339900573,1728147106582,-669.75,0.0004,30]
[339900574,1728147106592,-704.169704,0.0004,30]
[339900575,1728147106602,-1092.22,0.0004,30]
[339900576,1728147106611,-535.24,0.0004,30]
[339900577,1728147106620,-500.0,0.0004,30]
[339900578,1728147106630,-1378.36,0.0004,30]
[339900579,1728147106639,-745.48,0.0004,30]
[339900580,1728147106649,-500.0,0.0004,30]
[339900581,1728147106658,-500.0,0.0004,30]
[339900582,1728147106668,-500.0,0.0004,30]
[339900583,1728147106678,-501.13182673,0.0004,30]
[339900584,1728147106688,-500.0,0.0004,30]
[339900585,1728147106698,-500.0,0.0004,30]
[339900586,1728147106707,-500.0,0.0004,30]
[339900587,1728147106716,-500.0,0.0004,30]
[339900588,1728147106725,-1306.31,0.0004,30]
[339900589,1728147106734,-500.0,0.0004,30]
[339900590,1728147106743,-500.0,0.0004,30]
[339900591,1728147106753,-524.51,0.0004,30]
[339900592,1728147106762,-500.0,0.0004,30]
[339900593,1728147106772,-461.04792857,0.0004,30]
[339900594,1728147106782,-500.0,0.0004,30]
[339900595,1728147106791,-513.93,0.0004,30]
[339900596,1728147106801,-500.0,0.0004,30]
[339900597,1728147106810,-500.0,0.0004,30]
[339900598,1728147106820,-412.8990974,0.0004,30]
[339900599,1728147107342,-232.8709026,0.0004,30]
[339900600,1728147107352,-833.87,0.0004,30]
[339900601,1728147107361,-1307.93,0.0004,30]
[339900602,1728147107371,-500.0,0.0004,30]
[339900603,1728147107380,-500.0,0.0004,30]
[339900604,1728147107390,-1199.16,0.0004,30]
[339900605,1728147107399,-505.8873559,0.0004,30]
[339900606,1728147107409,-572.48552134,0.0004,30]
[339900607,1728147107418,-500.0,0.0004,30]
[339900608,1728147107428,-449.45596233,0.0004,30]
[339900609,1728147107438,-500.0,0.0004,30]
[339900610,1728147107447,-500.0,0.0004,30]
[339900611,1728147107457,-500.0,0.0004,30]
[339900612,1728147107467,-500.0,0.0004,30]
[339900613,1728147107477,-500.0,0.0004,30]
[339900614,1728147107487,-500.0,0.0004,30]
[339900615,1728147107496,-500.0,0.0004,30]
[339900616,1728147107505,-985.84,0.0004,30]
[339900617,1728147107515,-500.0,0.0004,30]
[339900618,1728147107525,-1049.3,0.0004,30]
[339900619,1728147107534,-1294.19,0.0004,30]
[339900620,1728147107543,-687.14,0.0004,30]
[339900621,1728147107552,-500.0,0.0004,30]
[339900622,1728147107562,-793.27,0.0004,30]
[339900623,1728147107571,-500.0,0.0004,30]
[339900624,1728147107581,-500.0,0.0004,30]
[339900625,1728147107591,-500.0,0.0004,30]
[339900626,1728147107600,-500.0,0.0004,30]
[339900627,1728147107609,-2888.1,0.0004,30]
[339900628,1728147107621,-501.63544521,0.0004,30]
[339900629,1728147107632,-500.0,0.0004,30]
[339900630,1728147107642,-500.0,0.0004,30]
[339900631,1728147107652,-500.0,0.0004,30]
[339900632,1728147107660,-989.98,0.0004,30]
[339900633,1728147107670,-500.0,0.0004,30]
[339900634,1728147107680,-500.0,0.0004,30]
[339900635,1728147107690,-500.0,0.0004,30]
[339900636,1728147107699,-1432.95,0.0004,30]
[339900637,1728147107709,-724.21,0.0004,30]
[339900638,1728147107719,-550.68,0.0004,30]
[339900639,1728147107728,-543.28,0.0004,30]
[339900640,1728147107738,-500.0,0.0004,30]
[339900641,1728147107747,-753.39,0.0004,30]
[339900642,1728147107756,-807.23,0.0004,30]
[339900643,1728147107766,-500.0,0.0004,30]
[339900644,1728147107775,-500.0,0.0004,30]
[339900645,1728147107784,-500.0,0.0004,30]
[339900646,1728147107793,-708.64,0.0004,30]
[339900647,1728147107803,-562.5,0.0004,30]
[339900648,1728147107813,-500.0,0.0004,30]
[339900649,1728147107822,-500.0,0.0004,30]
[339900650,1728147107832,-500.0,0.0004,30]
[339900651,1728147107842,-500.0,0.0004,30]
[339900652,1728147107852,-687.72,0.0004,30]
[339900653,1728147107862,-1195.82,0.0004,30]
[339900654,1728147107871,-905.32,0.0004,7]
[339900655,1728147107880,-968.05,0.0004,30]
[339900656,1728147107890,-1289.36,0.0004,30]
[339900657,1728147107900,-1417.19,0.0004,30]
[339900658,1728147107909,-763.68,0.0004,30]
[339900659,1728147107918,-504.04663031,0.0004,30]
[339900660,1728147107928,-500.0,0.0004,30]
[339900661,1728147107938,-500.0,0.0004,30]
[339900662,1728147107947,-1687.35,0.0004,30]
[339900663,1728147107957,-500.0,0.0004,30]
[339900664,1728147107966,-888.0,0.0004,120]
[339900665,1728147107975,-500.0,0.0004,30]
[339900666,1728147107985,-785.36,0.0004,30]
[339900667,1728147107995,-500.0,0.0004,30]
[339900668,1728147108004,-500.0,0.0004,30]
[339900669,1728147108014,-500.0,0.0004,30]
[339900670,1728147108024,-1179.64,0.0004,30]
[339900671,1728147108103,-500.0,0.0004,30]
[339900672,1728147108113,-582.36,0.0004,30]
[339900673,1728147108123,-500.0,0.0004,30]
[339900674,1728147108133,-500.0,0.0004,30]
[339900675,1728147108142,-500.0,0.0004,30]
[339900676,1728147108151,-643.53,0.0004,30]
[339900677,1728147108162,-500.0,0.0004,30]
[339900678,1728147108171,-1536.92,0.0004,30]
[339900679,1728147108181,-345.7960023,0.0004,30]
[339900680,1728147108191,-1213.33,0.0004,30]
[339900681,1728147108201,-711.86,0.0004,30]
[339900682,1728147108211,-533.33,0.0004,30]
[339900683,1728147108220,-1142.18,0.0004,30]
[339900684,1728147108230,-500.0,0.0004,30]
[339900685,1728147108245,-500.0,0.0004,30]
[339900686,1728147108256,-502.7386531,0.0004,30]
[339900687,1728147108266,-786.32,0.0004,30]
[339900688,1728147108277,-1479.11,0.0004,30]
[339900689,1728147108286,-500.0,0.0004,30]
[339900690,1728147108297,-500.0,0.0004,30]
[339900691,1728147108306,-649.26,0.0004,30]
[339900692,1728147108316,-500.0,0.0004,30]
[339900693,1728147108326,-500.0,0.0004,30]
[339900694,1728147108336,-903.52,0.0004,30]
[339900695,1728147108348,-915.1,0.0004,30]
[339900696,1728147108357,-500.0,0.0004,30]
[339900697,1728147108367,-500.0,0.0004,30]
[339900698,1728147108377,-642.95,0.0004,30]
[339900699,1728147108387,-500.0,0.0004,30]
[339900700,1728147108397,-500.0,0.0004,30]
[339900701,1728147108408,-931.55,0.0004,30]
[339900702,1728147108418,-500.0,0.0004,30]
[339900703,1728147108429,-500.0,0.0004,30]
[339900704,1728147108439,-503.09480108,0.0004,30]
[339900705,1728147108449,-1521.03,0.0004,30]
[339900706,1728147108459,-500.0,0.0004,30]
[339900707,1728147108471,-500.0,0.0004,30]
[339900708,1728147108492,-1032.8,0.0004,30]
[339900709,1728147108510,-500.0,0.0004,30]
[339900710,1728147108521,-500.0,0.0004,30]
[339900711,1728147108530,-500.0,0.0004,30]
[339900712,1728147108540,-500.0,0.0004,30]
[339900713,1728147108550,-901.49,0.0004,30]
[339900714,1728147108559,-500.0,0.0004,30]
[339900715,1728147108569,-1061.61,0.0004,30]
[339900716,1728147108578,-1304.21,0.0004,30]
[339900717,1728147108587,-1011.56,0.0004,30]
[339900718,1728147108596,-701.97,0.0004,30]
[339900719,1728147108606,-500.0,0.0004,30]
[339900720,1728147108615,-534.36,0.0004,30]
[339900721,1728147108625,-589.66,0.0004,30]
[339900722,1728147108634,-512.82,0.0004,30]
[339900723,1728147108644,-500.0,0.0004,30]
[339900724,1728147108653,-500.0,0.0004,30]
[339900725,1728147108662,-500.0,0.0004,30]
[339900726,1728147108671,-500.0,0.0004,30]
[339900727,1728147108681,-1198.94,0.0004,30]
[339900728,1728147108691,-500.0,0.0004,30]
[339900729,1728147108701,-836.31,0.0004,30]
[339900730,1728147108710,-908.97,0.0004,30]
[339900731,1728147108721,-714.05,0.0004,30]
[339900732,1728147108730,-500.0,0.0004,30]
[339900733,1728147108744,-787.9,0.0004,30]
[339900734,1728147108754,-500.0,0.0004,30]
[339900735,1728147108763,-500.0,0.0004,30]
[339900736,1728147108773,-530.83,0.0004,30]
[339900737,1728147108783,-1485.49,0.0004,30]
[339900738,1728147108793,-500.0,0.0004,30]
[339900739,1728147108803,-500.0,0.0004,30]
[339900740,1728147108813,-503.33436185,0.0004,30]
[339900741,1728147108822,-500.0,0.0004,30]
[339900742,1728147108832,-500.0,0.0004,30]
[339900743,1728147108841,-500.0,0.0004,30]
[339900744,1728147108851,-518.08,0.0004,30]
[339900745,1728147108861,-763.04,0.0004,30]
[339900746,1728147108871,-500.0,0.0004,30]
[339900747,1728147108881,-500.0,0.0004,30]
[339900748,1728147108891,-500.0,0.0004,30]
[339900749,1728147108900,-612.29,0.0004,30]
[339900750,1728147108909,-563.43,0.0004,30]
[339900751,1728147108919,-500.0,0.0004,30]
[339900752,1728147108928,-500.0,0.0004,30]
[339900753,1728147108937,-822.39,0.0004,30]